[Event "*** SCC Grand Prix: Titled Tuesday Blitz"]
[Site "Chess.com"]
[Date "2020.10.06"]
[Round "9"]
[White "Kotofeyca"]
[Black "mr65"]
[Result "1-0"]
[WhiteElo "2354"]
[BlackElo "2163"]
[TimeControl "180+1"]
[EndTime "11:45:14 PDT"]
[Termination "Kotofeyca won by resignation"]

1. d4 {[%clk 0:03:00.9]} 1... Nf6 {[%clk 0:02:58.9]} 2. c4 {[%clk 0:03:00.7]}
2... g6 {[%clk 0:02:58.8]} 3. f3 {[%clk 0:03:00.7]} 3... Bg7 {[%clk 0:02:58.7]}
4. e4 {[%clk 0:03:00.6]} 4... d6 {[%clk 0:02:58.7]} 5. Nc3 {[%clk 0:03:01.5]}
5... O-O {[%clk 0:02:58.4]} 6. Be3 {[%clk 0:03:02]} 6... Nc6 {[%clk 0:02:58.3]}
7. Nge2 {[%clk 0:03:02]} 7... a6 {[%clk 0:02:58.1]} 8. a3 {[%clk 0:03:02.6]}
8... Rb8 {[%clk 0:02:58]} 9. b4 {[%clk 0:03:02.5]} 9... b5 {[%clk 0:02:55.8]}
10. cxb5 {[%clk 0:03:03.4]} 10... axb5 {[%clk 0:02:55.3]} 11. d5 {[%clk
0:03:03.5]} 11... Ne5 {[%clk 0:02:53.7]} 12. Nd4 {[%clk 0:03:04.1]} 12... c5
{[%clk 0:02:51.2]} 13. dxc6 {[%clk 0:02:59.3]} 13... Nc4 {[%clk 0:02:43.1]} 14.
Bxc4 {[%clk 0:02:56.8]} 14... bxc4 {[%clk 0:02:42.3]} 15. O-O {[%clk 0:02:16.3]}
15... d5 {[%clk 0:02:40]} 16. e5 {[%clk 0:01:56.7]} 16... Ne8 {[%clk 0:02:32.4]}
17. f4 {[%clk 0:01:53.1]} 17... f6 {[%clk 0:02:23.7]} 18. exf6 {[%clk
0:01:48.9]} 18... Bxf6 {[%clk 0:02:20.3]} 19. b5 {[%clk 0:01:42.1]} 19... Nc7
{[%clk 0:02:15.7]} 20. Rb1 {[%clk 0:01:34.4]} 20... Bf5 {[%clk 0:02:07]} 21. b6
{[%clk 0:00:56.5]} 21... Bxb1 {[%clk 0:02:05]} 22. bxc7 {[%clk 0:00:56]} 22...
Qxc7 {[%clk 0:02:04.8]} 23. Nxb1 {[%clk 0:00:54.8]} 23... Bxd4 {[%clk
0:02:03.9]} 24. Bxd4 {[%clk 0:00:38.4]} 24... Rxf4 {[%clk 0:01:58.5]} 25. Rxf4
{[%clk 0:00:26.8]} 25... Qxf4 {[%clk 0:01:56.5]} 26. Nc3 {[%clk 0:00:27.7]}
26... e6 {[%clk 0:01:49]} 27. a4 {[%clk 0:00:20.6]} 27... Rb2 {[%clk 0:01:38.1]}
28. Nb5 {[%clk 0:00:16.3]} 28... Rd2 {[%clk 0:01:35.5]} 29. Qe1 {[%clk
0:00:13.5]} 29... Rxd4 {[%clk 0:01:32.5]} 30. Qxe6+ {[%clk 0:00:13.3]} 30... Kg7
{[%clk 0:01:32]} 31. Qe7+ {[%clk 0:00:12]} 31... Kh6 {[%clk 0:01:29.4]} 32. Nxd4
{[%clk 0:00:11.9]} 32... Qxd4+ {[%clk 0:01:28.7]} 33. Kf1 {[%clk 0:00:12.8]}
33... Qd1+ {[%clk 0:01:27.4]} 34. Kf2 {[%clk 0:00:12.7]} 34... Qd2+ {[%clk
0:01:27.3]} 35. Kf3 {[%clk 0:00:13.1]} 35... Qd3+ {[%clk 0:01:25]} 36. Qe3+
{[%clk 0:00:13]} 36... Qxe3+ {[%clk 0:01:20.6]} 37. Kxe3 {[%clk 0:00:13.9]} 1-0

[Event "*** SCC Grand Prix: Titled Tuesday Blitz"]
[Site "Chess.com"]
[Date "2020.10.06"]
[Round "9"]
[White "Kaslask"]
[Black "BikingBrian"]
[Result "1-0"]
[WhiteElo "2313"]
[BlackElo "2190"]
[TimeControl "180+1"]
[EndTime "11:45:15 PDT"]
[Termination "Kaslask won by resignation"]

1. d4 {[%clk 0:03:00.9]} 1... Nf6 {[%clk 0:02:59.2]} 2. c4 {[%clk 0:03:00.4]}
2... g6 {[%clk 0:02:58.5]} 3. Nc3 {[%clk 0:02:59.4]} 3... Bg7 {[%clk 0:02:58.8]}
4. e4 {[%clk 0:02:58.9]} 4... d6 {[%clk 0:02:59.3]} 5. Be2 {[%clk 0:02:58.4]}
5... O-O {[%clk 0:02:59.3]} 6. Be3 {[%clk 0:02:58]} 6... Na6 {[%clk 0:02:56]} 7.
f4 {[%clk 0:02:51.6]} 7... e5 {[%clk 0:02:52.3]} 8. fxe5 {[%clk 0:02:48]} 8...
dxe5 {[%clk 0:02:53.2]} 9. d5 {[%clk 0:02:47.2]} 9... c6 {[%clk 0:02:46.7]} 10.
Nf3 {[%clk 0:02:45.1]} 10... cxd5 {[%clk 0:02:46.8]} 11. cxd5 {[%clk 0:02:44.2]}
11... Bg4 {[%clk 0:02:36.8]} 12. O-O {[%clk 0:02:42.8]} 12... Bxf3 {[%clk
0:02:22.7]} 13. Bxf3 {[%clk 0:02:26.3]} 13... Nd7 {[%clk 0:02:22.6]} 14. Rc1
{[%clk 0:02:23]} 14... f5 {[%clk 0:02:22.3]} 15. Nb5 {[%clk 0:02:11.6]} 15...
fxe4 {[%clk 0:01:53.5]} 16. Bxe4 {[%clk 0:02:09.6]} 16... Qh4 {[%clk 0:01:53.5]}
17. Bf3 {[%clk 0:01:24.2]} 17... Bh6 {[%clk 0:01:50.3]} 18. Bf2 {[%clk
0:01:20.9]} 18... Qb4 {[%clk 0:01:42.4]} 19. Nc7 {[%clk 0:01:16.5]} 19... Bxc1
{[%clk 0:01:29.6]} 20. Qxc1 {[%clk 0:01:15.3]} 20... Rac8 {[%clk 0:01:24.2]} 21.
Nxa6 {[%clk 0:01:13.7]} 21... Rxc1 {[%clk 0:01:22.3]} 22. Nxb4 {[%clk
0:01:13.5]} 22... Rxf1+ {[%clk 0:01:16.1]} 23. Kxf1 {[%clk 0:01:12.9]} 23... a5
{[%clk 0:01:03.4]} 24. Nc2 {[%clk 0:01:02.1]} 24... Nf6 {[%clk 0:00:59.9]} 25.
Ne3 {[%clk 0:00:54.2]} 25... e4 {[%clk 0:00:58.9]} 26. Be2 {[%clk 0:00:52.5]}
26... Rd8 {[%clk 0:00:58.4]} 27. Bc4 {[%clk 0:00:50.7]} 27... Kg7 {[%clk
0:00:58.4]} 28. Bh4 {[%clk 0:00:48.4]} 28... Rb8 {[%clk 0:00:51.7]} 29. a4
{[%clk 0:00:45.6]} 29... h6 {[%clk 0:00:47.9]} 30. b3 {[%clk 0:00:42.7]} 30...
g5 {[%clk 0:00:48.2]} 31. Bg3 {[%clk 0:00:42.4]} 31... Re8 {[%clk 0:00:43.3]}
32. Bc7 {[%clk 0:00:39.6]} 32... Nd7 {[%clk 0:00:37.5]} 33. Bb5 {[%clk 0:00:36]}
33... Re7 {[%clk 0:00:36.6]} 34. Nf5+ {[%clk 0:00:35.7]} 1-0

[Event "*** SCC Grand Prix: Titled Tuesday Blitz"]
[Site "Chess.com"]
[Date "2020.10.06"]
[Round "9"]
[White "shriyanasmallya"]
[Black "canary2016"]
[Result "0-1"]
[WhiteElo "1620"]
[BlackElo "1903"]
[TimeControl "180+1"]
[EndTime "11:45:18 PDT"]
[Termination "canary2016 won by checkmate"]

1. e4 {[%clk 0:03:00.9]} 1... c5 {[%clk 0:02:59.1]} 2. Nc3 {[%clk 0:02:58.5]}
2... a6 {[%clk 0:02:58]} 3. f4 {[%clk 0:02:57.9]} 3... d6 {[%clk 0:02:54.2]} 4.
Nf3 {[%clk 0:02:54.5]} 4... g6 {[%clk 0:02:53.8]} 5. g3 {[%clk 0:02:54.7]} 5...
Bg7 {[%clk 0:02:53.1]} 6. Bg2 {[%clk 0:02:55.3]} 6... Nf6 {[%clk 0:02:49]} 7.
O-O {[%clk 0:02:55.2]} 7... O-O {[%clk 0:02:48.4]} 8. d3 {[%clk 0:02:55.4]} 8...
Nc6 {[%clk 0:02:48]} 9. f5 {[%clk 0:02:54.8]} 9... Nd7 {[%clk 0:02:38.6]} 10.
Be3 {[%clk 0:02:50.3]} 10... Nde5 {[%clk 0:02:37.1]} 11. Qd2 {[%clk 0:02:49.2]}
11... gxf5 {[%clk 0:02:18.5]} 12. exf5 {[%clk 0:02:47.2]} 12... Nxf3+ {[%clk
0:02:12.5]} 13. Rxf3 {[%clk 0:02:45.4]} 13... Ne5 {[%clk 0:02:12]} 14. Rff1
{[%clk 0:02:44.6]} 14... Bd7 {[%clk 0:02:01.6]} 15. Bh6 {[%clk 0:02:42.8]} 15...
Rb8 {[%clk 0:01:53]} 16. Qg5 {[%clk 0:02:39.9]} 16... Ng6 {[%clk 0:01:36.2]} 17.
fxg6 {[%clk 0:02:38.5]} 17... fxg6 {[%clk 0:01:19.9]} 18. Rxf8+ {[%clk 0:02:36]}
18... Qxf8 {[%clk 0:01:16.5]} 19. Bxg7 {[%clk 0:02:30.3]} 19... Qxg7 {[%clk
0:01:16.3]} 20. Bxb7 {[%clk 0:02:28.7]} 20... Qd4+ {[%clk 0:01:05.3]} 21. Kg2
{[%clk 0:02:23.2]} 21... Rxb7 {[%clk 0:00:51.6]} 22. Rf1 {[%clk 0:02:11.6]}
22... Bc6+ {[%clk 0:00:50.1]} 23. Kh3 {[%clk 0:02:06.9]} 23... Qg7 {[%clk
0:00:35.5]} 24. Qe3 {[%clk 0:01:59.2]} 24... Rxb2 {[%clk 0:00:31.9]} 25. Qe6+
{[%clk 0:01:58.6]} 25... Kh8 {[%clk 0:00:16]} 26. Qc8+ {[%clk 0:01:58.8]} 26...
Qg8 {[%clk 0:00:11.9]} 27. Rf8 {[%clk 0:01:57.6]} 27... Bd7+ {[%clk 0:00:08.3]}
28. Qxd7 {[%clk 0:01:53.7]} 28... Qxf8 {[%clk 0:00:07.8]} 29. Ne4 {[%clk
0:01:47.6]} 29... Qf5+ {[%clk 0:00:07.1]} 30. Qxf5 {[%clk 0:01:46.9]} 30... gxf5
{[%clk 0:00:07.4]} 31. Nc3 {[%clk 0:01:47.1]} 31... Rxc2 {[%clk 0:00:07.1]} 32.
Nd5 {[%clk 0:01:46.3]} 32... Rxa2 {[%clk 0:00:06.7]} 33. Nxe7 {[%clk 0:01:46.7]}
33... Ra3 {[%clk 0:00:06.3]} 34. Nxf5 {[%clk 0:01:47]} 34... Rxd3 {[%clk
0:00:06.4]} 35. Ne7 {[%clk 0:01:46.4]} 35... c4 {[%clk 0:00:06.6]} 36. Nc6
{[%clk 0:01:46.1]} 36... c3 {[%clk 0:00:06.5]} 37. Nb4 {[%clk 0:01:46.5]} 37...
Rd2 {[%clk 0:00:06.5]} 38. Nxa6 {[%clk 0:01:44.1]} 38... c2 {[%clk 0:00:06.8]}
39. Nb4 {[%clk 0:01:44.2]} 39... c1=Q {[%clk 0:00:06.7]} 40. Na2 {[%clk
0:01:44.7]} 40... Rxa2 {[%clk 0:00:05.4]} 41. Kh4 {[%clk 0:01:44.2]} 41... Qc4+
{[%clk 0:00:05.2]} 42. g4 {[%clk 0:01:44.4]} 42... Rxh2+ {[%clk 0:00:04.6]} 43.
Kg5 {[%clk 0:01:44.9]} 43... Qd5+ {[%clk 0:00:04.5]} 44. Kf6 {[%clk 0:01:44.9]}
44... Qe5+ {[%clk 0:00:04.5]} 45. Kf7 {[%clk 0:01:44.6]} 45... Rf2# {[%clk
0:00:04.6]} 0-1

[Event "*** SCC Grand Prix: Titled Tuesday Blitz"]
[Site "Chess.com"]
[Date "2020.10.06"]
[Round "9"]
[White "SophieNikoladze"]
[Black "Happy1712Drummer"]
[Result "0-1"]
[WhiteElo "2272"]
[BlackElo "2402"]
[TimeControl "180+1"]
[EndTime "11:45:32 PDT"]
[Termination "Happy1712Drummer won by resignation"]

1. d4 {[%clk 0:03:00.9]} 1... e6 {[%clk 0:02:58.7]} 2. Nf3 {[%clk 0:03:00.8]}
2... Nf6 {[%clk 0:02:57.1]} 3. e3 {[%clk 0:03:00.4]} 3... c5 {[%clk 0:02:51.5]}
4. b3 {[%clk 0:02:59.8]} 4... b6 {[%clk 0:02:51.4]} 5. Bb2 {[%clk 0:02:59.7]}
5... Bb7 {[%clk 0:02:52]} 6. Bd3 {[%clk 0:02:59.9]} 6... Be7 {[%clk 0:02:51.5]}
7. Nbd2 {[%clk 0:03:00.4]} 7... O-O {[%clk 0:02:51.3]} 8. O-O {[%clk 0:03:00.5]}
8... d6 {[%clk 0:02:51]} 9. c4 {[%clk 0:02:59.3]} 9... a6 {[%clk 0:02:48.6]} 10.
Qc2 {[%clk 0:02:57.9]} 10... Nbd7 {[%clk 0:02:46]} 11. e4 {[%clk 0:02:57.7]}
11... cxd4 {[%clk 0:02:44.8]} 12. Bxd4 {[%clk 0:02:48.4]} 12... e5 {[%clk
0:02:41.2]} 13. Bb2 {[%clk 0:02:46.3]} 13... Nc5 {[%clk 0:02:40.8]} 14. Rfe1
{[%clk 0:02:41.2]} 14... Rc8 {[%clk 0:02:35.9]} 15. Bf1 {[%clk 0:02:36.9]} 15...
b5 {[%clk 0:02:33.9]} 16. Qd1 {[%clk 0:02:31.5]} 16... bxc4 {[%clk 0:02:26.8]}
17. Bxc4 {[%clk 0:02:30.5]} 17... Ncxe4 {[%clk 0:02:23.8]} 18. Nxe4 {[%clk
0:02:25.5]} 18... Nxe4 {[%clk 0:02:24.7]} 19. Bd5 {[%clk 0:02:25.2]} 19... Bxd5
{[%clk 0:01:39.1]} 20. Qxd5 {[%clk 0:02:24.1]} 20... Nf6 {[%clk 0:01:40]} 21.
Qd2 {[%clk 0:02:23.8]} 21... Qb6 {[%clk 0:01:31.6]} 22. Rad1 {[%clk 0:02:22.4]}
22... h6 {[%clk 0:01:20.5]} 23. Ba3 {[%clk 0:02:22]} 23... Rfd8 {[%clk
0:01:18.8]} 24. Qe2 {[%clk 0:02:09.2]} 24... Bf8 {[%clk 0:01:12.5]} 25. Nh4
{[%clk 0:02:08.8]} 25... Qa5 {[%clk 0:01:03.1]} 26. Qb2 {[%clk 0:02:05]} 26...
e4 {[%clk 0:00:56.1]} 27. Re3 {[%clk 0:01:59.7]} 27... Qg5 {[%clk 0:00:46.7]}
28. g3 {[%clk 0:01:57.8]} 28... d5 {[%clk 0:00:40.1]} 29. Bxf8 {[%clk
0:01:56.1]} 29... Rxf8 {[%clk 0:00:38.8]} 30. Qd4 {[%clk 0:01:52.8]} 30... Rfd8
{[%clk 0:00:31.1]} 31. f3 {[%clk 0:01:51.7]} 31... Rc2 {[%clk 0:00:27.3]} 32.
fxe4 {[%clk 0:01:47.8]} 32... Ng4 {[%clk 0:00:25.5]} 33. Red3 {[%clk 0:01:28.2]}
33... Nxh2 {[%clk 0:00:21.2]} 34. exd5 {[%clk 0:01:26.9]} 34... Rxa2 {[%clk
0:00:18]} 35. d6 {[%clk 0:01:25.6]} 35... Ng4 {[%clk 0:00:14.2]} 36. d7 {[%clk
0:01:23.9]} 36... Ne5 {[%clk 0:00:14.2]} 37. Qb6 {[%clk 0:01:11.3]} 37... Nxd3
{[%clk 0:00:12.2]} 38. Qc7 {[%clk 0:01:06.8]} 38... Qe3+ {[%clk 0:00:10.4]} 0-1

[Event "*** SCC Grand Prix: Titled Tuesday Blitz"]
[Site "Chess.com"]
[Date "2020.10.06"]
[Round "9"]
[White "sokidze"]
[Black "vaishali2001"]
[Result "1-0"]
[WhiteElo "2699"]
[BlackElo "2543"]
[TimeControl "180+1"]
[EndTime "11:45:37 PDT"]
[Termination "sokidze won by resignation"]

1. d4 {[%clk 0:03:00.9]} 1... Nf6 {[%clk 0:02:58.5]} 2. g3 {[%clk 0:03:00.8]}
2... g6 {[%clk 0:02:52.9]} 3. Bg2 {[%clk 0:03:01]} 3... d5 {[%clk 0:02:52.8]} 4.
Nf3 {[%clk 0:03:00.6]} 4... Bg7 {[%clk 0:02:53.2]} 5. c4 {[%clk 0:03:01.2]} 5...
c6 {[%clk 0:02:50.5]} 6. Qb3 {[%clk 0:03:01.3]} 6... O-O {[%clk 0:02:48.6]} 7.
O-O {[%clk 0:03:01.7]} 7... Qb6 {[%clk 0:02:48.3]} 8. Nc3 {[%clk 0:03:00.8]}
8... Rd8 {[%clk 0:02:47.7]} 9. Bd2 {[%clk 0:02:57.8]} 9... Bf5 {[%clk
0:02:26.5]} 10. Rfc1 {[%clk 0:02:48.1]} 10... dxc4 {[%clk 0:02:10.2]} 11. Qxc4
{[%clk 0:02:45]} 11... Na6 {[%clk 0:02:10.6]} 12. Ng5 {[%clk 0:02:22.5]} 12...
Rxd4 {[%clk 0:01:30.5]} 13. Qxf7+ {[%clk 0:02:15.7]} 13... Kh8 {[%clk
0:01:30.6]} 14. Be3 {[%clk 0:02:06.9]} 14... Rf8 {[%clk 0:01:29.5]} 15. Qxe7
{[%clk 0:02:01.2]} 15... Ng4 {[%clk 0:01:21.4]} 16. Bxd4 {[%clk 0:01:50.4]}
16... Qxd4 {[%clk 0:01:22.3]} 17. e3 {[%clk 0:01:50]} 17... Qd2 {[%clk
0:01:12.2]} 18. Rf1 {[%clk 0:01:36.1]} 18... h6 {[%clk 0:00:52.1]} 19. Nf7+
{[%clk 0:01:14.9]} 19... Kh7 {[%clk 0:00:50]} 20. Ne4 {[%clk 0:01:01.8]} 20...
Qxb2 {[%clk 0:00:35.5]} 21. Rab1 {[%clk 0:00:52.3]} 21... Qxa2 {[%clk 0:00:21]}
22. Rxb7 {[%clk 0:00:50.4]} 22... Rg8 {[%clk 0:00:16.9]} 23. h3 {[%clk
0:00:43.1]} 23... Bxe4 {[%clk 0:00:03.9]} 24. Bxe4 {[%clk 0:00:35]} 24... Rf8
{[%clk 0:00:01.2]} 1-0

[Event "*** SCC Grand Prix: Titled Tuesday Blitz"]
[Site "Chess.com"]
[Date "2020.10.06"]
[Round "9"]
[White "ARTHURMOTIVATOR"]
[Black "ChessicallyInclined"]
[Result "0-1"]
[WhiteElo "2329"]
[BlackElo "2509"]
[TimeControl "180+1"]
[EndTime "11:45:38 PDT"]
[Termination "ChessicallyInclined won by resignation"]

1. e4 {[%clk 0:03:00.9]} 1... d6 {[%clk 0:03:00.1]} 2. d4 {[%clk 0:02:59.9]}
2... Nf6 {[%clk 0:03:00.6]} 3. Nc3 {[%clk 0:02:58.3]} 3... g6 {[%clk 0:02:59.9]}
4. Bg5 {[%clk 0:02:58.3]} 4... c6 {[%clk 0:02:57.1]} 5. Qd2 {[%clk 0:02:56.1]}
5... Nbd7 {[%clk 0:02:56.4]} 6. f4 {[%clk 0:02:54.6]} 6... d5 {[%clk 0:02:52.3]}
7. e5 {[%clk 0:02:48.8]} 7... Ne4 {[%clk 0:02:52.1]} 8. Nxe4 {[%clk 0:02:49.1]}
8... dxe4 {[%clk 0:02:53]} 9. Bc4 {[%clk 0:02:37.8]} 9... Nb6 {[%clk 0:02:51.9]}
10. Bb3 {[%clk 0:02:37.9]} 10... h6 {[%clk 0:02:49.3]} 11. Bh4 {[%clk
0:02:36.7]} 11... g5 {[%clk 0:02:49.4]} 12. fxg5 {[%clk 0:02:32.1]} 12... hxg5
{[%clk 0:02:50.3]} 13. Bxg5 {[%clk 0:02:30.9]} 13... Bf5 {[%clk 0:02:42.6]} 14.
Ne2 {[%clk 0:02:27]} 14... Qd7 {[%clk 0:02:26.3]} 15. O-O-O {[%clk 0:01:22.7]}
15... e6 {[%clk 0:02:21.4]} 16. h3 {[%clk 0:01:19]} 16... a5 {[%clk 0:02:20.7]}
17. a4 {[%clk 0:01:17.4]} 17... Nd5 {[%clk 0:02:12.1]} 18. g4 {[%clk 0:01:13.4]}
18... Bg6 {[%clk 0:02:11.2]} 19. h4 {[%clk 0:01:03.9]} 19... b5 {[%clk
0:02:06.5]} 20. h5 {[%clk 0:01:01.9]} 20... Bh7 {[%clk 0:02:05.9]} 21. Bf6
{[%clk 0:00:56.8]} 21... Rg8 {[%clk 0:01:59.2]} 22. g5 {[%clk 0:00:55.9]} 22...
e3 {[%clk 0:01:57.1]} 23. Qe1 {[%clk 0:00:54.8]} 23... Nxf6 {[%clk 0:01:38.8]}
24. gxf6 {[%clk 0:00:48.5]} 24... Bh6 {[%clk 0:01:39.2]} 25. Kb1 {[%clk
0:00:46.1]} 25... b4 {[%clk 0:01:09.1]} 26. Nc1 {[%clk 0:00:42.9]} 26... O-O-O
{[%clk 0:01:01.3]} 27. Ka2 {[%clk 0:00:35.2]} 27... Kb7 {[%clk 0:00:58.3]} 28.
c3 {[%clk 0:00:34.3]} 28... Rg2 {[%clk 0:00:50.2]} 29. cxb4 {[%clk 0:00:29.7]}
29... Rd2 {[%clk 0:00:49.2]} 30. bxa5 {[%clk 0:00:25.6]} 30... Qxd4 {[%clk
0:00:47.3]} 31. a6+ {[%clk 0:00:12.4]} 31... Ka7 {[%clk 0:00:46.2]} 32. Rxd2
{[%clk 0:00:10.5]} 32... exd2 {[%clk 0:00:45.4]} 33. Qf1 {[%clk 0:00:06.9]} 0-1

[Event "*** SCC Grand Prix: Titled Tuesday Blitz"]
[Site "Chess.com"]
[Date "2020.10.06"]
[Round "9"]
[White "brunomorado"]
[Black "szefru"]
[Result "0-1"]
[WhiteElo "2431"]
[BlackElo "2225"]
[TimeControl "180+1"]
[EndTime "11:45:39 PDT"]
[Termination "szefru won on time"]

1. d4 {[%clk 0:02:59.3]} 1... Nf6 {[%clk 0:02:59.3]} 2. Nc3 {[%clk 0:03:00.2]}
2... g6 {[%clk 0:02:59.4]} 3. e4 {[%clk 0:03:00.2]} 3... Bg7 {[%clk 0:02:59.1]}
4. e5 {[%clk 0:03:00.5]} 4... Ng8 {[%clk 0:02:58]} 5. Bc4 {[%clk 0:03:00.9]}
5... e6 {[%clk 0:02:57.3]} 6. Qf3 {[%clk 0:02:59.8]} 6... d5 {[%clk 0:02:52.2]}
7. Bb5+ {[%clk 0:02:48.2]} 7... Bd7 {[%clk 0:02:47.6]} 8. h4 {[%clk 0:02:47.8]}
8... c5 {[%clk 0:02:34.5]} 9. Bg5 {[%clk 0:02:13.5]} 9... Qa5 {[%clk 0:02:18.7]}
10. Bxd7+ {[%clk 0:01:58.4]} 10... Nxd7 {[%clk 0:02:18.4]} 11. Ne2 {[%clk
0:01:57.5]} 11... cxd4 {[%clk 0:02:14.3]} 12. Nxd4 {[%clk 0:01:58.4]} 12... Nxe5
{[%clk 0:02:11.5]} 13. Qd1 {[%clk 0:01:39.1]} 13... h6 {[%clk 0:01:55.8]} 14.
Bf4 {[%clk 0:01:18.8]} 14... Nc4 {[%clk 0:01:46]} 15. O-O {[%clk 0:01:07.9]}
15... Nxb2 {[%clk 0:01:20.8]} 16. Qd2 {[%clk 0:00:51.3]} 16... Nc4 {[%clk
0:01:19.2]} 17. Qd3 {[%clk 0:00:51.5]} 17... Ne7 {[%clk 0:01:10.6]} 18. Rab1
{[%clk 0:00:45.5]} 18... b6 {[%clk 0:01:05.4]} 19. Rfe1 {[%clk 0:00:30.9]} 19...
O-O {[%clk 0:01:02.6]} 20. Rb5 {[%clk 0:00:25.6]} 20... Qa6 {[%clk 0:00:55.3]}
21. Nxd5 {[%clk 0:00:07.7]} 21... Nxd5 {[%clk 0:00:49.8]} 22. Qxc4 {[%clk
0:00:02.5]} 22... Nxf4 {[%clk 0:00:38.3]} 0-1

[Event "*** SCC Grand Prix: Titled Tuesday Blitz"]
[Site "Chess.com"]
[Date "2020.10.06"]
[Round "9"]
[White "juli2512"]
[Black "SergeyShtyka"]
[Result "1-0"]
[WhiteElo "2066"]
[BlackElo "2226"]
[TimeControl "180+1"]
[EndTime "11:45:43 PDT"]
[Termination "juli2512 won on time"]

1. e4 {[%clk 0:03:00.9]} 1... c5 {[%clk 0:03:00.3]} 2. Nf3 {[%clk 0:02:59.2]}
2... Nc6 {[%clk 0:02:59.9]} 3. d3 {[%clk 0:02:58.9]} 3... e6 {[%clk 0:02:58.5]}
4. g3 {[%clk 0:02:56.4]} 4... d5 {[%clk 0:02:58.8]} 5. exd5 {[%clk 0:02:56.4]}
5... exd5 {[%clk 0:02:59.3]} 6. Bg2 {[%clk 0:02:56.9]} 6... Nf6 {[%clk
0:02:59.6]} 7. O-O {[%clk 0:02:56.3]} 7... Be7 {[%clk 0:02:59.5]} 8. Re1 {[%clk
0:02:52.1]} 8... O-O {[%clk 0:02:59.7]} 9. Bf4 {[%clk 0:02:45.7]} 9... h6 {[%clk
0:02:56.4]} 10. Ne5 {[%clk 0:02:45.4]} 10... Nxe5 {[%clk 0:02:54.2]} 11. Bxe5
{[%clk 0:02:45.6]} 11... Bg4 {[%clk 0:02:48.2]} 12. Qc1 {[%clk 0:02:36.4]} 12...
Qd7 {[%clk 0:02:46.8]} 13. Nc3 {[%clk 0:02:30.9]} 13... d4 {[%clk 0:02:42.8]}
14. Bxf6 {[%clk 0:02:26.3]} 14... Bxf6 {[%clk 0:02:40.6]} 15. Ne4 {[%clk
0:02:15.8]} 15... Be7 {[%clk 0:02:40]} 16. Qf4 {[%clk 0:02:06.4]} 16... f5
{[%clk 0:02:34.5]} 17. h3 {[%clk 0:01:54.9]} 17... Bh5 {[%clk 0:02:04]} 18. Qe5
{[%clk 0:01:36.5]} 18... Rac8 {[%clk 0:01:30.1]} 19. Nd2 {[%clk 0:01:25.9]}
19... Bf6 {[%clk 0:00:50.2]} 20. Qd5+ {[%clk 0:01:24.4]} 20... Qxd5 {[%clk
0:00:50.3]} 21. Bxd5+ {[%clk 0:01:23.6]} 21... Kh7 {[%clk 0:00:46.5]} 22. a4
{[%clk 0:01:14]} 22... b6 {[%clk 0:00:46.5]} 23. Be6 {[%clk 0:01:12.8]} 23...
Bg5 {[%clk 0:00:41.7]} 24. Nc4 {[%clk 0:00:59.5]} 24... Rce8 {[%clk 0:00:38.4]}
25. Nd6 {[%clk 0:00:56.1]} 25... Re7 {[%clk 0:00:29.2]} 26. Bxf5+ {[%clk
0:00:51.3]} 26... g6 {[%clk 0:00:27.8]} 27. Be4 {[%clk 0:00:45.7]} 27... Rd7
{[%clk 0:00:22.2]} 28. Nc4 {[%clk 0:00:44.5]} 28... Bf3 {[%clk 0:00:22.2]} 29.
Ne5 {[%clk 0:00:41.5]} 1-0

[Event "*** SCC Grand Prix: Titled Tuesday Blitz"]
[Site "Chess.com"]
[Date "2020.10.06"]
[Round "9"]
[White "misterlamine"]
[Black "boasovietica"]
[Result "0-1"]
[WhiteElo "2310"]
[BlackElo "2445"]
[TimeControl "180+1"]
[EndTime "11:45:46 PDT"]
[Termination "boasovietica won by resignation"]

1. d4 {[%clk 0:03:00.9]} 1... Nf6 {[%clk 0:02:59.8]} 2. c4 {[%clk 0:02:59.6]}
2... c5 {[%clk 0:02:51.4]} 3. e3 {[%clk 0:02:58.2]} 3... cxd4 {[%clk 0:02:47.4]}
4. exd4 {[%clk 0:02:59.1]} 4... d5 {[%clk 0:02:47.3]} 5. Nc3 {[%clk 0:02:45.1]}
5... g6 {[%clk 0:02:46.9]} 6. Nf3 {[%clk 0:02:43.7]} 6... Bg7 {[%clk 0:02:46.8]}
7. Be2 {[%clk 0:02:34.3]} 7... dxc4 {[%clk 0:02:43.5]} 8. Bxc4 {[%clk
0:02:35.2]} 8... O-O {[%clk 0:02:43.8]} 9. O-O {[%clk 0:02:35.5]} 9... Nc6
{[%clk 0:02:43.9]} 10. Be3 {[%clk 0:02:34.5]} 10... Bg4 {[%clk 0:02:40.9]} 11.
a3 {[%clk 0:02:32.8]} 11... Bxf3 {[%clk 0:02:16.8]} 12. Qxf3 {[%clk 0:02:33.7]}
12... Nxd4 {[%clk 0:02:17.3]} 13. Qxb7 {[%clk 0:02:32.4]} 13... Rb8 {[%clk
0:02:17.2]} 14. Qxa7 {[%clk 0:02:28.6]} 14... Ng4 {[%clk 0:01:55.7]} 15. Bg5
{[%clk 0:02:16.7]} 15... Qd6 {[%clk 0:01:47.7]} 16. f4 {[%clk 0:02:06.5]} 16...
Nc6 {[%clk 0:01:26.3]} 17. Qa4 {[%clk 0:01:53]} 17... Qc5+ {[%clk 0:01:06.3]}
18. Kh1 {[%clk 0:01:52.3]} 18... Ne3 {[%clk 0:01:06]} 19. Bb5 {[%clk 0:01:36]}
19... Nxf1 {[%clk 0:01:01.5]} 20. Bxc6 {[%clk 0:01:35.4]} 20... Rxb2 {[%clk
0:00:55.7]} 21. Ne4 {[%clk 0:01:31.5]} 21... Qc2 {[%clk 0:00:36.4]} 22. Qxc2
{[%clk 0:01:14.2]} 22... Rxc2 {[%clk 0:00:36.3]} 23. Rxf1 {[%clk 0:01:13.7]}
23... Rxc6 {[%clk 0:00:36.2]} 24. f5 {[%clk 0:01:07.5]} 24... gxf5 {[%clk
0:00:31.1]} 25. Rxf5 {[%clk 0:01:06.7]} 25... Rfc8 {[%clk 0:00:24]} 26. h4
{[%clk 0:01:05.7]} 26... f6 {[%clk 0:00:22.2]} 27. Bf4 {[%clk 0:00:59.4]} 27...
Rc4 {[%clk 0:00:21.5]} 28. Ng3 {[%clk 0:00:42.6]} 28... e6 {[%clk 0:00:20.9]}
29. Rb5 {[%clk 0:00:42.2]} 29... Rxf4 {[%clk 0:00:20.7]} 30. Rb7 {[%clk
0:00:42.2]} 30... Rxh4+ {[%clk 0:00:19]} 31. Kg1 {[%clk 0:00:42]} 31... f5
{[%clk 0:00:18.2]} 32. Kf2 {[%clk 0:00:39.6]} 32... Bd4+ {[%clk 0:00:17.3]} 33.
Kf3 {[%clk 0:00:39.8]} 33... Rc3+ {[%clk 0:00:17.3]} 34. Ke2 {[%clk 0:00:39.3]}
34... Rxg3 {[%clk 0:00:17.4]} 0-1